bitfinex/quotes_SOLUSD_20250111
["timestamp","ask_amount","ask_price","bid_price","bid_amount"]
[1736630891576,43.902374,191.56,191.53,0.50558357]
[1736630891770,0.12549,191.54,191.53,0.50558357]
[1736630892498,20.12549,191.53,191.52,0.50558357]
[1736630894681,0.12549,191.52,191.5,0.50558357]
[1736630895087,20.0,191.51,191.5,0.50558357]
[1736630896785,22.6099,191.58,191.52,0.50558357]
[1736630897174,23.902374,191.57,191.53,0.50558357]
[1736630897408,20.12549,191.54,191.53,0.50558357]
[1736630899487,20.12549,191.54,191.52,0.50558357]
[1736630900295,20.12549,191.54,191.51,0.50558357]
[1736630900609,20.12549,191.54,191.53,0.50558357]
[1736630901309,20.12549,191.54,191.52,0.50558357]
[1736630901885,20.12549,191.54,191.51,0.50558357]
[1736630902405,20.12549,191.54,191.52,0.50558357]
[1736630904333,20.12549,191.53,191.52,0.50558357]
[1736630905394,0.12549,191.51,191.5,0.50558357]
[1736630909392,23.902374,191.51,191.5,0.50558357]
[1736630910018,23.902374,191.51,191.46,5.0]
[1736630910217,43.902374,191.47,191.34,1.6049]
[1736630910914,43.902374,191.47,191.35,5.0]
[1736630911121,43.902374,191.47,191.37,5.0]
[1736630911516,43.902374,191.47,191.38,5.0]
[1736630911704,43.902374,191.47,191.42,5.0]
[1736630912020,43.902374,191.47,191.43,5.0]
[1736630912402,43.902374,191.47,191.37,9.44249917]
[1736630912403,43.902374,191.47,191.42,5.0]
[1736630912999,43.902374,191.47,191.41,5.0]
[1736630913608,43.902374,191.47,191.42,5.0]
[1736630913827,43.902374,191.47,191.36,9.44249917]
[1736630913828,43.902374,191.47,191.41,5.0]
[1736630914003,43.902374,191.47,191.4,5.0]
[1736630914399,43.902374,191.47,191.41,5.0]
[1736630915306,43.902374,191.47,191.4,5.0]
[1736630915507,43.902374,191.47,191.39,5.0]
[1736630915722,43.902374,191.47,191.4,5.0]
[1736630916201,43.902374,191.47,191.39,5.0]
[1736630916719,2.6115,191.46,191.39,5.0]
[1736630916919,23.902374,191.45,191.4,5.0]
[1736630919213,23.902374,191.45,191.39,5.0]
[1736630919413,0.12549,191.41,191.38,5.0]
[1736630920606,0.12549,191.41,191.39,5.0]
[1736630921728,0.12549,191.41,191.34,1.6049]
[1736630921729,0.12549,191.41,191.4,5.0]
[1736630922730,0.12549,191.41,191.38,5.0]
[1736630926047,0.12549,191.41,191.37,5.0]
[1736630926507,23.902374,191.41,191.36,5.0]
[1736630927211,0.12549,191.37,191.33,5.0]
[1736630927417,20.0,191.35,191.34,5.0]
[1736630927618,20.0,191.35,191.29,1.6091]
[1736630927619,20.12549,191.34,191.33,5.0]
[1736630928826,20.12549,191.34,191.31,5.0]
[1736630929851,20.12549,191.34,191.33,5.0]
[1736630930143,20.12549,191.34,191.32,5.0]
[1736630930838,20.12549,191.34,191.31,5.0]
[1736630931342,20.12549,191.34,191.3,5.0]
[1736630931549,20.12549,191.34,191.31,5.0]
[1736630931726,0.12549,191.3,191.29,5.0]
[1736630931926,0.12549,191.29,191.28,5.0]
[1736630932739,2.6131,191.34,191.31,5.0]
[1736630933052,24.67835372,191.37,191.32,5.0]
[1736630933219,20.0,191.33,191.32,5.0]
[1736630933609,0.12549,191.34,191.32,5.0]
[1736630933813,20.0,191.33,191.32,5.0]
[1736630940657,2.6127,191.37,191.32,5.0]
[1736630940825,2.06799544,191.4,191.36,5.0]
[1736630941025,2.6123,191.41,191.36,5.0]
[1736630941235,20.12549,191.37,191.36,5.0]
[1736630942537,20.0,191.37,191.36,5.0]
[1736630942730,2.6117,191.44,191.39,5.0]
[1736630943042,0.12549,191.43,191.39,5.0]
[1736630943654,43.902374,191.43,191.39,5.0]
[1736630943955,20.0,191.41,191.39,5.0]
[1736630944649,0.12549,191.4,191.37,5.0]
[1736630944855,0.12549,191.4,191.36,5.0]
[1736630945359,0.12549,191.4,191.37,5.0]
[1736630945759,0.12549,191.4,191.38,5.0]
[1736630946261,0.12549,191.4,191.33,1.5898]
[1736630946262,0.12549,191.4,191.37,5.0]
[1736630946463,0.12549,191.4,191.38,5.0]
[1736630946656,0.12549,191.4,191.36,5.0]
[1736630946836,20.0,191.37,191.36,5.0]
[1736630947245,20.0,191.37,191.35,5.0]
[1736630947537,20.12549,191.36,191.34,5.0]
[1736630947738,20.12549,191.36,191.35,5.0]
[1736630947953,20.12549,191.36,191.34,5.0]
[1736630948674,20.12549,191.36,191.35,5.0]
[1736630949876,20.12549,191.36,191.34,5.0]
[1736630951273,20.12549,191.36,191.32,5.0]
[1736630951481,20.12549,191.36,191.33,5.0]
[1736630952284,20.12549,191.36,191.34,5.0]
[1736630952750,20.12549,191.36,191.33,5.0]
[1736630953249,20.12549,191.36,191.32,5.0]
[1736630953583,20.12549,191.36,191.33,5.0]
[1736630953783,20.12549,191.36,191.32,5.0]
[1736630953956,20.12549,191.36,191.33,5.0]
[1736630954989,20.12549,191.36,191.28,8.062]
[1736630954990,20.12549,191.36,191.34,5.0]
[1736630956658,20.12549,191.36,191.35,5.0]
[1736630956873,0.12549,191.36,191.35,5.0]
[1736630957269,2.6116,191.45,191.39,5.0]
[1736630957465,23.902374,191.44,191.39,5.0]
[1736630957669,0.12549,191.4,191.37,5.0]
[1736630957889,0.12549,191.4,191.38,5.0]
[1736630958355,0.12549,191.41,191.38,5.0]
[1736630958766,0.12549,191.41,191.39,5.0]
[1736630959797,0.12549,191.37,191.34,5.0]
[1736630959956,20.12549,191.34,191.33,5.0]
[1736630961179,20.0,191.4,191.36,5.0]
[1736630961368,20.0,191.4,191.38,5.0]
[1736630961759,0.12549,191.39,191.38,5.0]
[1736630962964,20.0,191.4,191.38,5.0]
[1736630963173,22.10622072,191.4,191.38,5.0]
[1736630965766,0.12549,191.39,191.38,5.0]
[1736630971786,2.6118,191.44,191.4,5.0]
[1736630971984,4.74490459,191.44,191.41,5.0]
[1736630972187,4.74490459,191.44,191.42,5.0]
[1736630972390,2.13310459,191.44,191.43,5.0]
[1736630972681,20.0,191.44,191.43,5.0]
[1736630974297,20.0,191.44,191.41,5.0]
[1736630974483,20.0,191.44,191.4,5.0]
[1736630975199,20.0,191.44,191.41,5.0]
[1736630975376,0.12549,191.43,191.41,5.0]
[1736630975576,2.73739,191.43,191.41,5.0]
[1736630978885,0.12549,191.43,191.42,5.0]
[1736630984389,14.92902968,191.47,191.46,5.0]
[1736630988207,15.05451968,191.47,191.46,5.0]
[1736630991606,20.12549,191.44,191.43,5.0]
[1736630993414,22.26935184,191.44,191.43,5.0]
[1736630993715,22.26935184,191.44,191.42,5.0]
[1736630994499,22.26935184,191.44,191.43,5.0]
[1736630997803,22.26935184,191.44,191.42,5.0]
[1736630998001,2.6119,191.43,191.39,5.0]
[1736630998193,20.0,191.39,191.36,5.0]
[1736630999736,20.0,191.39,191.38,5.0]
[1736631000220,2.6126,191.38,191.28,1.5386]
[1736631000430,20.0,191.34,191.28,1.5386]
[1736631000624,20.0,191.3,191.2,8.097]
[1736631001624,20.0,191.3,191.21,9.44249917]
[1736631001625,0.12549,191.29,191.21,9.44249917]
[1736631002805,0.12549,191.29,191.2,17.597]
[1736631003019,0.12549,191.29,191.2,27.03949917]
[1736631003221,20.0,191.3,191.21,9.44249917]
[1736631003517,20.0,191.3,191.22,9.44249917]
[1736631004228,20.0,191.3,191.2,32.03949917]
[1736631004408,20.0,191.3,191.2,27.03949917]
[1736631004717,20.0,191.3,191.2,27.53949917]
[1736631005015,20.0,191.3,191.21,4.5]
[1736631006898,20.0,191.3,191.21,13.94249917]
[1736631008223,2.6128,191.36,191.24,9.44249917]
[1736631008432,2.6128,191.36,191.26,10.98109917]
[1736631008724,2.6124,191.39,191.28,16.00089917]
[1736631008903,8.7101,191.42,191.29,9.44249917]
[1736631009295,23.776884,191.41,191.29,9.44249917]
[1736631009514,20.0,191.38,191.3,9.44249917]
[1736631009925,20.0,191.38,191.28,16.00089917]
[1736631010800,23.776884,191.41,191.28,16.00089917]
[1736631011022,20.0,191.38,191.28,6.5584]
[1736631011229,20.0,191.38,191.28,11.0584]
[1736631011402,20.0,191.34,191.28,4.5]
[1736631011921,0.12549,191.33,191.28,4.5]
[1736631012298,20.0,191.3,191.28,4.5]
[1736631013422,0.12549,191.29,191.28,4.5]
[1736631013621,0.12549,191.29,191.22,1.5386]
[1736631019109,2.6139,191.28,191.17,1.6345]
[1736631020133,20.0,191.2,191.09,11.6345]
[1736631020333,20.0,191.22,191.09,11.6345]
[1736631020528,20.0,191.18,191.09,1.6345]
[1736631021126,20.0,191.18,191.09,11.07699917]
[1736631021317,20.0,191.18,191.09,1.6345]
[1736631021627,20.0,191.18,191.09,16.44180286]
[1736631022738,20.0,191.18,191.1,4.52]
[1736631024815,0.12549,191.17,191.09,1.6345]
[1736631025050,23.902374,191.17,191.09,1.6345]
[1736631025229,20.0,191.14,191.09,1.6345]
[1736631025948,0.12549,191.13,191.09,1.6345]
[1736631026728,6.6008,191.19,191.09,1.6345]
[1736631026939,20.0,191.16,191.09,1.6345]
[1736631030256,23.902374,191.15,191.09,1.6345]
[1736631032057,20.0,191.12,191.09,1.6345]
[1736631033633,0.12549,191.11,191.06,6.0761]
[1736631033834,0.12549,191.11,191.05,1.5131]
[1736631034149,20.0,191.08,191.05,1.5131]
[1736631035659,20.0,191.08,191.01,4.52]
[1736631036665,4.76030439,191.14,191.01,19.32730286]
[1736631037038,20.0,191.1,191.01,4.52]
[1736631037353,0.12549,191.05,191.0,1.5131]
[1736631037665,0.12549,191.05,190.96,6.0552]
[1736631038276,23.902374,191.05,190.96,6.0552]
[1736631038648,23.902374,191.05,190.95,1.5131]
[1736631039750,20.0,191.09,190.98,14.80730286]
[1736631039943,1.2065,191.15,191.01,14.80730286]
[1736631040262,0.12549,191.11,191.01,14.80730286]
[1736631040684,0.12549,191.11,191.0,16.32040286]
[1736631040859,23.902374,191.11,191.0,16.32040286]
[1736631041465,20.0,191.08,191.0,16.32040286]
[1736631041771,20.0,191.08,191.0,1.5131]
[1736631042179,20.0,191.04,191.0,1.5131]
[1736631042543,2.6168,191.08,191.0,1.5131]
[1736631042746,22.6162,191.12,191.0,1.5131]
[1736631043049,22.6162,191.12,191.0,16.32040286]
[1736631043249,20.0,191.08,191.0,1.5131]
[1736631044964,2.6165,191.1,191.0,1.5131]
[1736631045464,0.12549,191.05,191.0,1.5131]
[1736631045669,43.902374,191.05,190.93,1.5131]
[1736631045972,0.12549,191.04,190.93,1.5131]
[1736631047542,0.12549,191.02,190.93,1.5131]
[1736631048742,15.2327,191.11,190.94,14.80730286]
[1736631048743,2.617,191.06,190.94,14.80730286]
[1736631049048,9.56,191.14,190.97,14.80730286]
[1736631049049,2.6165,191.09,190.97,14.80730286]
[1736631049262,2.6165,191.09,190.98,7.5683]
[1736631049460,0.12549,191.08,190.98,7.5683]
[1736631049965,20.0,191.1,190.98,7.5683]
[1736631050167,0.12549,191.09,190.98,7.5683]
[1736631050490,0.12549,191.09,190.98,12.5683]
[1736631050778,0.12549,191.09,190.98,7.5683]
[1736631051270,0.12549,191.04,190.98,1.5131]
[1736631052576,20.0,191.01,190.98,1.5131]
[1736631052769,0.12549,190.98,190.87,1.5131]
[1736631055278,20.0,190.99,190.87,1.5131]
[1736631055279,2.6182,190.97,190.87,1.5131]
[1736631059064,2.618,190.98,190.87,1.5131]
[1736631059879,20.12549,190.94,190.87,1.5131]
[1736631062859,2.6179,190.99,190.87,16.32040286]
[1736631063065,2.6179,190.99,190.89,14.80730286]
[1736631063681,2.6175,191.02,190.91,14.80730286]
[1736631063882,2.6175,191.02,190.92,6.0481]
[1736631064982,26.393784,191.06,190.92,6.0481]
[1736631065370,20.0,190.99,190.92,6.0481]
[1736631067394,0.12549,190.98,190.92,6.0481]
[1736631068676,0.12549,190.98,190.89,1.5909]
[1736631068677,20.0,190.95,190.89,1.5909]
[1736631070069,0.12549,190.94,190.89,1.5909]
[1736631070266,0.12549,190.94,190.84,1.5909]
[1736631070267,20.0,190.91,190.84,1.5909]
[1736631070489,0.12549,190.9,190.84,1.5909]
[1736631072489,2.74469,190.9,190.84,1.5909]
[1736631072989,0.12549,190.9,190.84,1.5909]
[1736631074187,2.6183,190.97,190.84,16.39820286]
[1736631074693,0.12549,190.92,190.84,1.5909]
[1736631075079,43.902374,190.96,190.84,1.5909]
[1736631075394,20.0,190.91,190.84,1.5909]
[1736631075597,0.12549,190.9,190.84,1.5909]
[1736631075780,0.12549,190.86,190.84,1.5909]
[1736631076272,0.12549,190.86,190.78,7.977]
[1736631077271,20.0,190.83,190.78,7.977]
[1736631078893,0.12549,190.86,190.79,14.80730286]
[1736631079069,20.0,190.88,190.79,14.80730286]
[1736631079270,23.776884,190.87,190.79,14.80730286]
[1736631079896,2.6191,190.9,190.79,14.80730286]
[1736631080089,2.6191,190.9,190.81,14.80730286]
[1736631080283,2.6187,190.93,190.81,14.80730286]
[1736631080597,2.6187,190.93,190.83,14.80730286]
[1736631081399,22.6187,190.93,190.83,14.80730286]
[1736631081570,2.13594914,190.95,190.85,14.80730286]
[1736631081778,2.6183,190.97,190.87,14.80730286]
[1736631081985,2.6183,190.97,190.86,7.6627]
[1736631081986,20.0,190.93,190.86,7.6627]
[1736631082431,23.776884,190.96,190.86,7.6627]
[1736631082717,0.12549,190.96,190.86,7.6627]
[1736631083310,0.12549,190.94,190.86,7.6627]
[1736631083503,0.12549,190.9,190.86,7.6627]
[1736631086012,20.0,190.91,190.86,7.6627]
[1736631086513,2.6184,190.95,190.86,7.6627]
[1736631086885,20.0,190.91,190.86,7.6627]
[1736631088477,0.12549,190.9,190.86,7.6627]
[1736631088796,0.12549,190.9,190.86,1.5518]
[1736631089192,23.902374,190.9,190.86,1.5518]
[1736631089384,0.12549,190.87,190.86,1.5518]
[1736631090286,20.0,190.89,190.86,1.5518]
[1736631091107,5.0,191.0,190.86,1.5518]
[1736631091319,2.6179,190.99,190.86,16.35910286]
[1736631091900,20.0,190.96,190.86,16.35910286]
[1736631092106,19.93710942,190.96,190.83,5.78563538]
[1736631092283,19.93710942,190.96,190.86,14.80730286]
[1736631092605,23.776884,190.96,190.86,14.80730286]
[1736631092779,2.6183,190.97,190.86,14.80730286]
[1736631093592,2.6184,190.95,190.85,14.80730286]
[1736631094115,0.12549,190.92,190.83,14.80730286]
[1736631094298,0.12549,190.92,190.82,14.80730286]
[1736631094601,0.12549,190.92,190.83,14.80730286]
[1736631094834,0.12549,190.92,190.82,19.42730286]
[1736631095183,20.0,190.89,190.83,1.5067]
[1736631095506,0.12549,190.92,190.84,14.80730286]
[1736631095688,20.0,190.94,190.84,14.80730286]
[1736631096405,20.0,190.98,190.85,14.80730286]
[1736631096703,0.12549,190.93,190.85,14.80730286]
[1736631097688,0.12549,190.93,190.84,14.80730286]
[1736631097887,0.12549,190.93,190.83,16.31400286]
[1736631098711,0.12549,190.93,190.83,21.31400286]
[1736631100003,2.74419,190.93,190.83,1.5067]
[1736631100194,2.74419,190.93,190.83,21.31400286]
[1736631100395,2.6179,190.99,190.85,19.80730286]
[1736631100711,20.0,190.98,190.86,6.1989]
[1736631100907,2.6179,190.99,190.87,22.09957835]
[1736631101122,2.6179,190.99,190.89,14.80730286]
[1736631101523,20.0,191.03,190.89,19.80730286]
[1736631101829,2.6175,191.02,190.89,19.80730286]
[1736631102601,2.6175,191.02,190.9,16.31400286]
[1736631103334,2.6175,191.02,190.9,1.5067]
[1736631104009,0.12549,191.01,190.9,1.5067]
[1736631106310,0.12549,190.99,190.9,1.5067]
[1736631112624,0.12549,190.99,190.9,16.31400286]
[1736631114136,0.12549,190.99,190.91,6.013]
[1736631114938,20.0,191.03,190.92,14.80730286]
[1736631115140,20.0,191.03,190.93,14.80730286]
[1736631116727,2.6172,191.04,190.95,14.80730286]
[1736631117214,2.6172,191.04,190.94,16.39130286]
[1736631118450,2.6172,191.04,190.95,14.80730286]
[1736631119238,22.74229,191.07,190.95,14.80730286]
[1736631119741,22.74229,191.07,190.96,14.80730286]
[1736631120536,2.74229,191.07,190.99,14.80730286]
[1736631120942,2.74229,191.07,190.98,14.80730286]
[1736631121121,2.74229,191.07,190.97,16.39130286]
[1736631121935,2.74229,191.07,190.97,1.584]
[1736631123055,2.74229,191.07,190.97,16.39130286]
[1736631123219,2.74229,191.07,190.98,14.80730286]
[1736631123414,2.15174474,191.1,191.0,14.80730286]
[1736631123628,8.18452406,191.15,191.03,22.40430286]
[1736631123934,8.18452406,191.15,191.04,14.80730286]
[1736631124433,20.0,191.14,191.04,14.80730286]
[1736631124631,9.71022406,191.19,191.03,7.597]
[1736631124632,9.71022406,191.19,191.05,14.80730286]
[1736631124839,9.71022406,191.19,191.06,14.80730286]
[1736631125136,2.6155,191.17,191.07,14.80730286]
[1736631125340,2.6155,191.17,191.09,1.584]
[1736631125725,2.615,191.2,191.1,14.80730286]
[1736631126427,2.615,191.2,191.09,16.39130286]
[1736631127157,0.12549,191.19,191.09,16.39130286]
[1736631127660,0.12549,191.19,191.1,14.80730286]
[1736631128873,0.12549,191.19,191.09,16.39130286]
[1736631131034,22.6153,191.18,191.09,1.584]
[1736631133652,22.6153,191.18,191.04,1.6007]
[1736631133653,20.0,191.14,191.04,1.6007]
[1736631134045,20.0,191.1,191.0,6.2007]
[1736631134251,20.0,191.1,191.0,1.6007]
[1736631134428,0.12549,191.09,191.0,1.6007]
[1736631135245,0.12549,191.04,191.0,1.6007]
[1736631135456,0.12549,191.04,190.98,6.0072]
[1736631135666,0.12549,191.04,190.96,1.6007]
[1736631137648,2.6173,191.03,190.96,1.6007]
[1736631137844,2.6173,191.03,190.94,6.0072]
[1736631138478,2.6173,191.03,190.93,4.6]
[1736631138675,2.6173,191.03,190.92,1.6007]
[1736631138875,2.6173,191.03,190.92,16.40800286]
[1736631139177,2.6173,191.03,190.94,14.80730286]
[1736631139350,2.6173,191.03,190.93,14.80730286]
[1736631140488,20.0,191.05,190.95,14.80730286]
[1736631140650,20.0,191.05,190.99,14.80730286]
[1736631140849,20.0,191.05,191.01,1.6007]
[1736631142448,23.902374,191.09,191.01,1.6007]
[1736631142746,20.0,191.06,191.01,1.6007]
[1736631143168,20.0,191.07,191.01,1.6007]
[1736631143372,20.0,191.07,191.01,16.40800286]
[1736631143974,8.1663,191.17,191.01,1.6007]
[1736631144151,2.6159,191.14,191.03,14.80730286]
[1736631144350,2.6159,191.14,191.04,14.80730286]
[1736631145050,0.12549,191.13,191.04,14.80730286]
[1736631146588,20.0,191.1,191.04,14.80730286]
[1736631146956,23.776884,191.1,191.02,4.6]
[1736631147185,20.0,191.08,191.01,1.6007]
[1736631147397,23.776884,191.07,191.01,1.6007]
[1736631149390,43.776884,191.1,191.01,1.6007]
[1736631150660,0.12549,191.09,191.01,1.6007]
[1736631151883,0.12549,191.07,191.01,1.6007]
[1736631153892,20.0,191.1,190.98,4.6]
[1736631154105,20.0,191.1,191.01,14.80730286]
[1736631154471,0.12549,191.09,191.01,14.80730286]
[1736631155368,2.15622426,191.13,191.04,14.80730286]
[1736631155571,2.6158,191.14,191.05,16.32810286]
[1736631155872,2.2455,191.1,191.06,14.80730286]
[1736631156072,2.2455,191.1,191.07,14.80730286]
[1736631156813,2.2455,191.1,191.09,14.80730286]
[1736631159479,2.2455,191.1,191.09,19.40730286]
[1736631161006,2.2455,191.1,191.09,19.38730286]
[1736631162285,2.2455,191.1,191.09,20.17190578]
[1736631162496,2.2455,191.1,191.09,19.38730286]
[1736631166878,0.5789,191.1,191.09,64.51178972]
[1736631167077,1.622,191.25,191.12,23.776884]
[1736631167381,0.12549,191.24,191.16,14.80730286]
[1736631168591,1.622,191.25,191.17,14.80730286]
[1736631168993,20.0,191.26,191.18,14.80730286]
[1736631170307,20.0,191.26,191.17,14.80730286]
[1736631170787,20.0,191.26,191.18,14.80730286]
[1736631173104,20.0,191.26,191.15,24.56121235]
[1736631173105,1.6136,191.29,191.21,14.80730286]
[1736631173406,6.4836,191.33,191.23,14.80730286]
[1736631174911,20.0,191.3,191.22,14.80730286]
[1736631175304,20.0,191.3,191.21,19.44730286]
[1736631176409,20.0,191.3,191.21,4.64]
[1736631176893,0.12549,191.29,191.21,4.64]
[1736631178229,20.0,191.3,191.21,19.44730286]
[1736631178596,20.0,191.3,191.22,14.80730286]
[1736631179399,20.0,191.3,191.21,19.44730286]
[1736631181040,20.0,191.3,191.21,4.64]
[1736631181223,20.0,191.3,191.21,19.44730286]
[1736631181399,6.4836,191.33,191.21,19.44730286]
[1736631181400,6.4836,191.33,191.25,14.80730286]
[1736631181945,17.10382664,191.34,191.28,14.80730286]
[1736631182103,6.3465,191.37,191.28,14.80730286]
[1736631182424,20.0,191.34,191.28,14.80730286]
[1736631182597,20.0,191.34,191.26,14.80730286]
[1736631183603,20.0,191.34,191.26,19.42730286]
[1736631184721,20.0,191.34,191.27,14.80730286]
[1736631185033,6.3465,191.37,191.29,14.80730286]
[1736631185439,0.12549,191.37,191.29,14.80730286]
[1736631185731,0.12549,191.37,191.27,14.80730286]
[1736631185933,20.0,191.34,191.26,4.62]
[1736631186122,0.12549,191.33,191.26,4.62]
[1736631186631,20.0,191.34,191.26,19.42730286]
[1736631186823,22.6127,191.38,191.26,19.42730286]
[1736631187029,22.6127,191.38,191.28,14.80730286]
[1736631187225,0.12549,191.37,191.29,14.80730286]
[1736631187616,0.12549,191.37,191.3,14.80730286]
[1736631187825,0.12549,191.37,191.29,14.80730286]
[1736631188026,0.12549,191.37,191.28,14.80730286]
[1736631189037,0.12549,191.37,191.27,38.58418686]
[1736631189734,0.12549,191.37,191.28,14.80730286]
[1736631190617,0.12549,191.37,191.27,38.58418686]
[1736631191042,0.12549,191.37,191.27,23.776884]
[1736631191242,20.0,191.35,191.21,1.6077]
[1736631191546,1.5183,191.32,191.22,4.62]
[1736631194139,2.6135,191.31,191.21,4.62]
[1736631194841,0.12549,191.3,191.21,4.62]
[1736631197746,0.12549,191.3,191.21,19.42730286]
[1736631199649,0.12549,191.3,191.21,4.62]
[1736631201536,0.12549,191.3,191.2,14.80730286]
[1736631202726,0.12549,191.3,191.2,23.776884]
[1736631203054,20.0,191.28,191.19,4.6]
[1736631203647,20.0,191.23,191.14,14.80730286]
[1736631203849,20.0,191.23,191.15,4.6]
[1736631204145,20.0,191.23,191.12,14.80730286]
[1736631204348,20.0,191.23,191.12,19.42730286]
[1736631204550,20.0,191.23,191.12,4.62]
[1736631204741,1.5607,191.22,191.12,4.62]
[1736631204927,2.6149,191.21,191.09,19.42730286]
[1736631205127,2.6149,191.21,191.11,14.80730286]
[1736631205327,2.6149,191.21,191.11,9.47597066]
[1736631205527,22.6149,191.21,191.11,9.47597066]
[1736631206252,2.6149,191.21,191.11,9.47597066]
[1736631206551,1.5607,191.22,191.13,9.47597066]
[1736631206856,0.12549,191.21,191.13,9.47597066]
[1736631207354,0.12549,191.21,191.12,14.80337965]
[1736631207555,1.5607,191.22,191.14,14.80337965]
[1736631207859,1.5607,191.22,191.15,14.80337965]
[1736631208631,6.2233,191.26,191.2,14.80337965]
[1736631209326,6.2233,191.26,191.16,20.78441488]
[1736631209534,6.2233,191.26,191.18,14.80337965]
[1736631209733,1.5607,191.28,191.21,14.80337965]
[1736631210465,21.5607,191.28,191.21,14.80337965]
[1736631210823,21.5607,191.28,191.19,19.42337965]
[1736631212846,21.5607,191.28,191.19,4.62]
[1736631213433,24.1747,191.28,191.19,4.62]
[1736631216844,0.12549,191.27,191.19,4.62]
[1736631218147,2.6142,191.26,191.19,4.62]
[1736631218433,2.6142,191.26,191.14,14.80337965]
[1736631218756,2.6142,191.26,191.14,19.42337965]
[1736631219762,2.6142,191.26,191.15,38.58026365]
[1736631220059,22.6142,191.26,191.15,38.58026365]
[1736631221058,22.6142,191.26,191.16,14.80337965]
[1736631222261,22.55121727,191.26,191.16,14.80337965]
[1736631222569,22.55121727,191.26,191.15,38.58026365]
[1736631226453,22.55121727,191.26,191.19,14.80337965]
[1736631226658,20.0,191.26,191.2,14.80337965]
[1736631227565,20.0,191.26,191.19,14.80337965]
[1736631227947,20.0,191.26,191.18,14.80337965]
[1736631228343,20.0,191.26,191.17,14.80337965]
[1736631228660,0.12549,191.27,191.16,14.80337965]
[1736631228661,20.0,191.24,191.16,14.80337965]
[1736631230372,20.0,191.26,191.16,14.80337965]
[1736631230747,20.0,191.26,191.15,14.80337965]
[1736631231151,20.0,191.26,191.16,14.80337965]
[1736631231765,20.0,191.26,191.15,38.58026365]
[1736631232493,2.6143,191.25,191.15,38.58026365]
[1736631233362,6.4532,191.24,191.13,14.80337965]
[1736631233667,20.0,191.21,191.13,19.38337965]
[1736631233885,20.0,191.21,191.14,14.80337965]
[1736631234090,20.0,191.21,191.15,14.80337965]
[1736631235975,1.5412,191.23,191.16,14.80337965]
[1736631236152,1.5412,191.23,191.14,23.776884]
[1736631236153,1.5412,191.23,191.15,14.80337965]
[1736631236751,1.5412,191.23,191.14,38.58026365]
[1736631237977,1.5412,191.23,191.14,23.776884]
[1736631241355,20.0,191.21,191.14,33.25037916]
[1736631242080,20.0,191.21,191.15,9.47349516]
[1736631242583,20.0,191.21,191.14,37.81037916]
[1736631243881,20.0,191.21,191.14,4.56]
[1736631244280,22.615,191.21,191.14,4.56]
[1736631244581,22.615,191.21,191.12,23.776884]
[1736631246469,22.615,191.21,191.13,9.47349516]
[1736631247288,22.615,191.21,191.12,9.47349516]
[1736631247587,22.615,191.21,191.11,33.25037916]
[1736631248181,22.615,191.21,191.11,23.776884]
[1736631250980,2.615,191.21,191.11,23.776884]
[1736631251162,0.12549,191.22,191.11,33.25037916]
[1736631251363,0.12549,191.22,191.12,9.47349516]
[1736631252363,20.0,191.21,191.11,23.776884]
[1736631252981,20.0,191.21,191.1,4.56]
[1736631253478,20.0,191.21,191.1,33.25037916]
[1736631254773,20.0,191.21,191.13,9.47349516]